[Event "Late-Titled-Tuesday-Blitz-January-23-2024"]
[Site "Chess.com"]
[Date "2024.01.23"]
[Round "5"]
[White "Sjakkerntobi"]
[Black "ukchessbomber"]
[Result "0-1"]
[WhiteElo "2501"]
[BlackElo "2688"]
[TimeControl "180+1"]
[EndTime "14:55:25 PST"]
[Termination "ukchessbomber won by resignation"]

1. e4 {[%clk 0:03:00.9]} 1... a6 {[%clk 0:03:00.9]} 2. d4 {[%clk 0:03:00.2]}
2... b6 {[%clk 0:03:01.8]} 3. Nc3 {[%clk 0:02:59.5]} 3... Bb7 {[%clk 0:03:02.7]}
4. Bd3 {[%clk 0:02:59.9]} 4... d6 {[%clk 0:03:03.2]} 5. Qe2 {[%clk 0:03:00.3]}
5... Nd7 {[%clk 0:03:04.1]} 6. Nf3 {[%clk 0:03:00.3]} 6... g6 {[%clk 0:03:04.7]}
7. h4 {[%clk 0:02:59.9]} 7... Bg7 {[%clk 0:03:05.6]} 8. h5 {[%clk 0:03:00.1]}
8... e6 {[%clk 0:03:06.3]} 9. Bg5 {[%clk 0:02:59.4]} 9... Bf6 {[%clk 0:03:06.3]}
10. Bxf6 {[%clk 0:02:58.8]} 10... Qxf6 {[%clk 0:03:03.4]} 11. O-O-O {[%clk
0:02:58.5]} 11... b5 {[%clk 0:03:00.7]} 12. e5 {[%clk 0:02:58.6]} 12... Qg7
{[%clk 0:02:59.3]} 13. d5 {[%clk 0:02:48.9]} 13... Nxe5 {[%clk 0:02:53]} 14.
dxe6 {[%clk 0:02:47.2]} 14... Bxf3 {[%clk 0:02:46.1]} 15. gxf3 {[%clk
0:02:45.7]} 15... O-O-O {[%clk 0:02:45.5]} 16. exf7 {[%clk 0:02:29.7]} 16...
Qxf7 {[%clk 0:02:43.9]} 17. Be4 {[%clk 0:02:29.8]} 17... Nf6 {[%clk 0:02:39.1]}
18. a4 {[%clk 0:02:01.4]} 18... Qc4 {[%clk 0:02:25]} 19. Qxc4 {[%clk 0:01:56.3]}
19... bxc4 {[%clk 0:02:21.9]} 20. hxg6 {[%clk 0:01:53.1]} 20... hxg6 {[%clk
0:02:14]} 21. f4 {[%clk 0:01:40.7]} 21... Nxe4 {[%clk 0:02:11.5]} 22. Nxe4
{[%clk 0:01:41.6]} 22... Ng4 {[%clk 0:01:53.7]} 23. Rhg1 {[%clk 0:01:41.2]}
23... Rh4 {[%clk 0:01:53]} 24. f3 {[%clk 0:01:40.6]} 24... Nh2 {[%clk
0:01:32.1]} 25. Rxg6 {[%clk 0:01:34.2]} 25... Rxf4 {[%clk 0:01:31.3]} 26. Ng5
{[%clk 0:01:22]} 26... Re8 {[%clk 0:01:26.4]} 27. Rh1 {[%clk 0:01:14.2]} 27...
Nxf3 {[%clk 0:01:20.4]} 28. Nxf3 {[%clk 0:01:01.6]} 28... Rxf3 {[%clk
0:01:20.2]} 29. Kb1 {[%clk 0:01:02.5]} 29... Rf2 {[%clk 0:01:12.8]} 30. Rg7
{[%clk 0:01:01]} 30... Re5 {[%clk 0:01:05.6]} 31. Rhh7 {[%clk 0:00:53.9]} 31...
Rc5 {[%clk 0:01:05.6]} 32. Rg8+ {[%clk 0:00:52.4]} 32... Kb7 {[%clk 0:01:05.7]}
33. Rhh8 {[%clk 0:00:52.8]} 33... Rd5 {[%clk 0:01:00.4]} 34. Rb8+ {[%clk
0:00:47.5]} 34... Kc6 {[%clk 0:01:00.1]} 35. Ra8 {[%clk 0:00:48]} 35... Rd1+
{[%clk 0:00:45.4]} 36. Ka2 {[%clk 0:00:47.8]} 36... Rxc2 {[%clk 0:00:44.2]} 37.
Rxa6+ {[%clk 0:00:47.9]} 37... Kd5 {[%clk 0:00:25.4]} 38. Rh5+ {[%clk
0:00:45.2]} 38... Kd4 {[%clk 0:00:19.2]} 39. Rh4+ {[%clk 0:00:35.4]} 39... Ke3
{[%clk 0:00:18.8]} 40. Rh3+ {[%clk 0:00:32]} 40... Kf4 {[%clk 0:00:18.2]} 41.
Rc3 {[%clk 0:00:19.6]} 41... Rxc3 {[%clk 0:00:14.9]} 42. bxc3 {[%clk 0:00:20.5]}
42... c5 {[%clk 0:00:14.4]} 43. Kb2 {[%clk 0:00:18.4]} 43... Ke3 {[%clk
0:00:12.5]} 44. Kc2 {[%clk 0:00:18.4]} 44... Rd2+ {[%clk 0:00:12.5]} 45. Kc1
{[%clk 0:00:18.5]} 45... Rd3 {[%clk 0:00:13.2]} 46. Kc2 {[%clk 0:00:18.8]} 46...
d5 {[%clk 0:00:08.7]} 47. Re6+ {[%clk 0:00:19]} 47... Kf4 {[%clk 0:00:09]} 48.
Rh6 {[%clk 0:00:19.2]} 48... d4 {[%clk 0:00:08.3]} 49. cxd4 {[%clk 0:00:18]}
49... cxd4 {[%clk 0:00:09.2]} 50. Rc6 {[%clk 0:00:18]} 50... Rc3+ {[%clk
0:00:08.8]} 51. Kd2 {[%clk 0:00:18.5]} 51... Ke4 {[%clk 0:00:08.9]} 52. a5
{[%clk 0:00:18.8]} 52... Kd5 {[%clk 0:00:09]} 53. Rc8 {[%clk 0:00:19.2]} 53...
Rd3+ {[%clk 0:00:09.5]} 54. Kc2 {[%clk 0:00:19.5]} 54... Rc3+ {[%clk 0:00:10]}
55. Kd2 {[%clk 0:00:19.8]} 55... Ra3 {[%clk 0:00:10.5]} 56. Rd8+ {[%clk
0:00:19.8]} 56... Kc5 {[%clk 0:00:10.5]} 57. Rc8+ {[%clk 0:00:20.1]} 57... Kb4
{[%clk 0:00:10.8]} 58. Rd8 {[%clk 0:00:18]} 58... Ra2+ {[%clk 0:00:09.7]} 59.
Kc1 {[%clk 0:00:17.3]} 59... Kc3 {[%clk 0:00:09.9]} 60. Kb1 {[%clk 0:00:18]}
60... Rxa5 {[%clk 0:00:09.6]} 61. Rb8 {[%clk 0:00:16]} 61... d3 {[%clk
0:00:09.4]} 0-1

[Event "Late-Titled-Tuesday-Blitz-January-23-2024"]
[Site "Chess.com"]
[Date "2024.01.23"]
[Round "5"]
[White "Kombinator01"]
[Black "chessflav"]
[Result "1/2-1/2"]
[WhiteElo "2455"]
[BlackElo "2320"]
[TimeControl "180+1"]
[EndTime "14:55:28 PST"]
[Termination "Game drawn - insufficient material"]

1. b4 {[%clk 0:02:48.7]} 1... a5 {[%clk 0:02:55.7]} 2. b5 {[%clk 0:02:43.8]}
2... c6 {[%clk 0:02:50.2]} 3. a4 {[%clk 0:02:38]} 3... Nf6 {[%clk 0:02:34.6]} 4.
Bb2 {[%clk 0:02:37.3]} 4... d5 {[%clk 0:02:31.6]} 5. e3 {[%clk 0:02:31.3]} 5...
Bf5 {[%clk 0:02:30.8]} 6. Nf3 {[%clk 0:02:25.8]} 6... Nbd7 {[%clk 0:02:30.3]} 7.
d3 {[%clk 0:02:14.7]} 7... e6 {[%clk 0:02:28.9]} 8. Nbd2 {[%clk 0:02:10.2]} 8...
Bb4 {[%clk 0:02:25.4]} 9. c3 {[%clk 0:02:08.1]} 9... Be7 {[%clk 0:02:23.1]} 10.
d4 {[%clk 0:02:07.3]} 10... O-O {[%clk 0:02:21]} 11. Be2 {[%clk 0:02:03.6]}
11... Ne4 {[%clk 0:02:15.7]} 12. O-O {[%clk 0:02:01.8]} 12... Bd6 {[%clk
0:02:14.4]} 13. c4 {[%clk 0:01:59.4]} 13... dxc4 {[%clk 0:01:46.4]} 14. Nxc4
{[%clk 0:01:55.3]} 14... Bc7 {[%clk 0:01:43]} 15. bxc6 {[%clk 0:01:53.6]} 15...
bxc6 {[%clk 0:01:41.6]} 16. Rc1 {[%clk 0:01:46.1]} 16... Rb8 {[%clk 0:01:29.1]}
17. Ba3 {[%clk 0:01:46]} 17... Re8 {[%clk 0:01:29.3]} 18. Ncd2 {[%clk
0:01:38.8]} 18... Ndf6 {[%clk 0:00:58.2]} 19. Rxc6 {[%clk 0:01:27.5]} 19... Qd7
{[%clk 0:00:57.2]} 20. Bb5 {[%clk 0:01:20.8]} 20... Rec8 {[%clk 0:00:49.8]} 21.
Qc1 {[%clk 0:01:02.2]} 21... Qd8 {[%clk 0:00:47.9]} 22. Nxe4 {[%clk 0:00:51.8]}
22... Bxe4 {[%clk 0:00:47.9]} 23. Rc3 {[%clk 0:00:50.5]} 23... Nd5 {[%clk
0:00:47.8]} 24. Rc5 {[%clk 0:00:45.3]} 24... Bxf3 {[%clk 0:00:47.8]} 25. gxf3
{[%clk 0:00:45.2]} 25... Qh4 {[%clk 0:00:39.8]} 26. Rxc7 {[%clk 0:00:36.4]}
26... Rxc7 {[%clk 0:00:38.6]} 27. Qd2 {[%clk 0:00:25]} 27... h5 {[%clk
0:00:37.1]} 28. Bd6 {[%clk 0:00:23.9]} 28... Rbc8 {[%clk 0:00:28.6]} 29. Bxc7
{[%clk 0:00:23.2]} 29... Rxc7 {[%clk 0:00:29.5]} 30. Rc1 {[%clk 0:00:20.7]}
30... Rxc1+ {[%clk 0:00:27.9]} 31. Qxc1 {[%clk 0:00:21.6]} 31... Qh3 {[%clk
0:00:28.7]} 32. Bd3 {[%clk 0:00:20.4]} 32... g6 {[%clk 0:00:27.2]} 33. Be2
{[%clk 0:00:16.3]} 33... h4 {[%clk 0:00:27.2]} 34. Qc2 {[%clk 0:00:12.4]} 34...
Qf5 {[%clk 0:00:21]} 35. Qxf5 {[%clk 0:00:12.8]} 35... gxf5 {[%clk 0:00:21.7]}
36. Kf1 {[%clk 0:00:11.4]} 36... Nc3 {[%clk 0:00:22.1]} 37. Ke1 {[%clk
0:00:07.9]} 37... Nxa4 {[%clk 0:00:21.7]} 38. Kd2 {[%clk 0:00:08.4]} 38... Nb6
{[%clk 0:00:22]} 39. Kc3 {[%clk 0:00:08.6]} 39... Kg7 {[%clk 0:00:16.8]} 40. e4
{[%clk 0:00:08.8]} 40... Kf6 {[%clk 0:00:15.9]} 41. Bd3 {[%clk 0:00:09]} 41...
Kg5 {[%clk 0:00:15]} 42. exf5 {[%clk 0:00:08.4]} 42... exf5 {[%clk 0:00:15]} 43.
Bc4 {[%clk 0:00:06.4]} 43... Kf4 {[%clk 0:00:14.5]} 44. Bxf7 {[%clk 0:00:06.2]}
44... Kxf3 {[%clk 0:00:14.5]} 45. d5 {[%clk 0:00:06.7]} 45... Kxf2 {[%clk
0:00:13.5]} 46. Be6 {[%clk 0:00:06.1]} 46... Nxd5+ {[%clk 0:00:11.2]} 47. Bxd5
{[%clk 0:00:06.1]} 47... f4 {[%clk 0:00:12.1]} 48. Kb3 {[%clk 0:00:04]} 48... f3
{[%clk 0:00:12.5]} 49. Ka4 {[%clk 0:00:04.4]} 49... Kg2 {[%clk 0:00:13]} 50.
Kxa5 {[%clk 0:00:04.7]} 50... Kxh2 {[%clk 0:00:11.6]} 51. Bxf3 {[%clk
0:00:04.3]} 51... Kg3 {[%clk 0:00:12.4]} 52. Ba8 {[%clk 0:00:05.2]} 52... h3
{[%clk 0:00:12.6]} 53. Bb7 {[%clk 0:00:06.1]} 53... h2 {[%clk 0:00:13.2]} 54.
Bh1 {[%clk 0:00:05.3]} 54... Kf2 {[%clk 0:00:14.1]} 55. Ba8 {[%clk 0:00:06.2]}
55... Kg1 {[%clk 0:00:13.9]} 56. Bb7 {[%clk 0:00:06.8]} 56... h1=Q {[%clk
0:00:14]} 57. Bxh1 {[%clk 0:00:06.9]} 1/2-1/2

[Event "Late-Titled-Tuesday-Blitz-January-23-2024"]
[Site "Chess.com"]
[Date "2024.01.23"]
[Round "5"]
[White "GMRAVEN_ON_YOUTUBE"]
[Black "Brown_Mamba24"]
[Result "0-1"]
[WhiteElo "2837"]
[BlackElo "2650"]
[TimeControl "180+1"]
[EndTime "14:55:39 PST"]
[Termination "Brown_Mamba24 won on time"]

1. f4 {[%clk 0:03:00.9]} 1... d5 {[%clk 0:02:57]} 2. Nf3 {[%clk 0:03:00.8]} 2...
c5 {[%clk 0:02:57.1]} 3. e3 {[%clk 0:03:01.2]} 3... Nf6 {[%clk 0:02:48.7]} 4. b3
{[%clk 0:03:01.5]} 4... Bg4 {[%clk 0:02:46.2]} 5. Bb2 {[%clk 0:02:59.8]} 5... e6
{[%clk 0:02:46.2]} 6. h3 {[%clk 0:03:00]} 6... Bxf3 {[%clk 0:02:30.6]} 7. Qxf3
{[%clk 0:03:00.9]} 7... Bd6 {[%clk 0:02:26.9]} 8. Bb5+ {[%clk 0:02:55.2]} 8...
Nc6 {[%clk 0:02:25.7]} 9. Bxc6+ {[%clk 0:02:55.5]} 9... bxc6 {[%clk 0:02:25.4]}
10. d3 {[%clk 0:02:51.6]} 10... Qa5+ {[%clk 0:01:55.2]} 11. Nd2 {[%clk 0:02:49]}
11... c4 {[%clk 0:01:55.6]} 12. dxc4 {[%clk 0:02:29.9]} 12... Bb4 {[%clk
0:01:24.3]} 13. O-O-O {[%clk 0:02:15.6]} 13... Qxa2 {[%clk 0:01:21.4]} 14. e4
{[%clk 0:02:14.6]} 14... a5 {[%clk 0:00:36.2]} 15. exd5 {[%clk 0:02:06.3]} 15...
cxd5 {[%clk 0:00:36.3]} 16. f5 {[%clk 0:02:02.1]} 16... a4 {[%clk 0:00:32.3]}
17. fxe6 {[%clk 0:01:59.6]} 17... Ba3 {[%clk 0:00:24.5]} 18. exf7+ {[%clk
0:01:47.3]} 18... Kxf7 {[%clk 0:00:24.5]} 19. Qc3 {[%clk 0:01:46]} 19... d4
{[%clk 0:00:13.3]} 20. Qxd4 {[%clk 0:01:39.5]} 20... Rhd8 {[%clk 0:00:13.5]} 21.
Qe5 {[%clk 0:01:26.4]} 21... Bd6 {[%clk 0:00:11.6]} 22. Qc3 {[%clk 0:01:08.1]}
22... a3 {[%clk 0:00:10.4]} 23. Ba1 {[%clk 0:01:08.3]} 23... Bb4 {[%clk
0:00:10.2]} 24. Qe5 {[%clk 0:00:56.6]} 24... Ra5 {[%clk 0:00:10.4]} 25. Nf3
{[%clk 0:00:35]} 25... Rxe5 {[%clk 0:00:04.7]} 26. Bxe5 {[%clk 0:00:35.9]} 26...
Re8 {[%clk 0:00:02.3]} 27. Bd4 {[%clk 0:00:28.4]} 27... Ne4 {[%clk 0:00:02.5]}
28. Rd3 {[%clk 0:00:15.2]} 28... Kg8 {[%clk 0:00:01.8]} 29. Rhd1 {[%clk
0:00:12.6]} 29... h6 {[%clk 0:00:02.4]} 30. Ne5 {[%clk 0:00:12]} 30... Nc5
{[%clk 0:00:02.7]} 31. Rg3 {[%clk 0:00:11.1]} 31... Ne6 {[%clk 0:00:01.9]} 32.
Nf3 {[%clk 0:00:03.2]} 32... g5 {[%clk 0:00:02.8]} 33. Be5 {[%clk 0:00:03]}
33... Bc5 {[%clk 0:00:03]} 34. Re1 {[%clk 0:00:02.5]} 34... Kh7 {[%clk
0:00:03.4]} 35. Re4 {[%clk 0:00:02.5]} 35... Bf8 {[%clk 0:00:03.9]} 36. h4
{[%clk 0:00:02.5]} 36... Bg7 {[%clk 0:00:04.3]} 37. hxg5 {[%clk 0:00:02.8]}
37... Bxe5 {[%clk 0:00:04.9]} 38. g6+ {[%clk 0:00:03.7]} 38... Kg7 {[%clk
0:00:04.9]} 39. Rxe5 {[%clk 0:00:03.4]} 39... Qa1+ {[%clk 0:00:05.3]} 40. Kd2
{[%clk 0:00:04.1]} 40... Qxe5 {[%clk 0:00:05.6]} 41. Nxe5 {[%clk 0:00:04.3]}
41... a2 {[%clk 0:00:06.5]} 42. Rf3 {[%clk 0:00:04.8]} 42... a1=Q {[%clk
0:00:06.9]} 43. Rf7+ {[%clk 0:00:05.7]} 43... Kg8 {[%clk 0:00:07.1]} 44. Nd7
{[%clk 0:00:06.3]} 44... Qd4+ {[%clk 0:00:07.3]} 45. Kc1 {[%clk 0:00:06.7]}
45... Qa1+ {[%clk 0:00:06.8]} 46. Kd2 {[%clk 0:00:06.8]} 46... Rd8 {[%clk
0:00:05.4]} 47. Ke2 {[%clk 0:00:06.5]} 47... Rxd7 {[%clk 0:00:04.6]} 48. Rxd7
{[%clk 0:00:07.4]} 48... Qe5+ {[%clk 0:00:04.9]} 49. Kd2 {[%clk 0:00:07.2]}
49... Qf4+ {[%clk 0:00:05]} 50. Kc3 {[%clk 0:00:06.5]} 50... Qf6+ {[%clk
0:00:04.6]} 51. Kb4 {[%clk 0:00:05.9]} 51... Qxg6 {[%clk 0:00:05.1]} 52. c5
{[%clk 0:00:05.5]} 52... Qxc2 {[%clk 0:00:05.1]} 53. Rd5 {[%clk 0:00:01.2]}
53... Qxg2 {[%clk 0:00:05.3]} 54. Re5 {[%clk 0:00:01.3]} 54... Qb7+ {[%clk
0:00:04.8]} 55. Kc4 {[%clk 0:00:01.6]} 55... Qa6+ {[%clk 0:00:04.6]} 56. Kd5
{[%clk 0:00:01.7]} 56... Nc7+ {[%clk 0:00:04.2]} 57. Kd4 {[%clk 0:00:02.3]}
57... Qb5 {[%clk 0:00:04]} 58. Re7 {[%clk 0:00:01.7]} 58... Na6 {[%clk
0:00:03.4]} 0-1

[Event "Late-Titled-Tuesday-Blitz-January-23-2024"]
[Site "Chess.com"]
[Date "2024.01.23"]
[Round "5"]
[White "WPWPWP-2015"]
[Black "Filipets"]
[Result "1-0"]
[WhiteElo "2505"]
[BlackElo "2594"]
[TimeControl "180+1"]
[EndTime "14:55:48 PST"]
[Termination "WPWPWP-2015 won by resignation"]

1. e4 {[%clk 0:03:00.9]} 1... e6 {[%clk 0:02:59.1]} 2. d4 {[%clk 0:03:00.5]}
2... d5 {[%clk 0:02:59.6]} 3. Nc3 {[%clk 0:03:01.1]} 3... Nf6 {[%clk 0:02:59.1]}
4. Bg5 {[%clk 0:03:00.4]} 4... Be7 {[%clk 0:02:58.7]} 5. Bd3 {[%clk 0:02:56.6]}
5... dxe4 {[%clk 0:02:50.3]} 6. Nxe4 {[%clk 0:02:55.7]} 6... Nxe4 {[%clk
0:02:47.5]} 7. Bxe7 {[%clk 0:02:54.7]} 7... Qxe7 {[%clk 0:02:30.7]} 8. Bxe4
{[%clk 0:02:54]} 8... Qb4+ {[%clk 0:02:31]} 9. c3 {[%clk 0:02:51.1]} 9... Qxb2
{[%clk 0:02:30.3]} 10. Ne2 {[%clk 0:02:51.3]} 10... Nd7 {[%clk 0:02:25.8]} 11.
O-O {[%clk 0:02:48.8]} 11... O-O {[%clk 0:02:17.8]} 12. Qd3 {[%clk 0:02:38.4]}
12... Nf6 {[%clk 0:02:16.5]} 13. Rfb1 {[%clk 0:02:37.5]} 13... Qa3 {[%clk
0:02:16.1]} 14. Bxb7 {[%clk 0:02:36]} 14... Bxb7 {[%clk 0:02:14.9]} 15. Rxb7
{[%clk 0:02:34.9]} 15... Rfc8 {[%clk 0:01:58.9]} 16. Qf3 {[%clk 0:02:26.6]}
16... c5 {[%clk 0:01:53.1]} 17. dxc5 {[%clk 0:02:09.8]} 17... Qxc5 {[%clk
0:01:50.9]} 18. h3 {[%clk 0:02:07.4]} 18... Qd5 {[%clk 0:01:37]} 19. Qxd5 {[%clk
0:02:04.2]} 19... Nxd5 {[%clk 0:01:37.9]} 20. Rc1 {[%clk 0:02:03]} 20... Rc4
{[%clk 0:01:37.4]} 21. Kf1 {[%clk 0:01:58.7]} 21... a5 {[%clk 0:01:30.9]} 22.
Ke1 {[%clk 0:01:58.3]} 22... Rd8 {[%clk 0:01:21.5]} 23. Rb5 {[%clk 0:01:45.2]}
23... a4 {[%clk 0:01:19.7]} 24. Rc2 {[%clk 0:01:39.1]} 24... g6 {[%clk 0:01:14]}
25. g3 {[%clk 0:01:38.6]} 25... h5 {[%clk 0:01:13.6]} 26. h4 {[%clk 0:01:38.5]}
26... Kg7 {[%clk 0:01:13.9]} 27. Rb7 {[%clk 0:01:21.1]} 27... Rdc8 {[%clk
0:01:05.7]} 28. Kd2 {[%clk 0:01:19]} 28... Rd8 {[%clk 0:01:06.2]} 29. Kc1 {[%clk
0:01:17.8]} 29... Nf6 {[%clk 0:01:01.3]} 30. Nd4 {[%clk 0:01:10.5]} 30... Kg8
{[%clk 0:00:54.4]} 31. Kb2 {[%clk 0:01:09.8]} 31... Ne4 {[%clk 0:00:52.5]} 32.
a3 {[%clk 0:01:03.1]} 32... Nc5 {[%clk 0:00:50.3]} 33. Rb5 {[%clk 0:00:53.8]}
33... Rd5 {[%clk 0:00:36.2]} 34. Kb1 {[%clk 0:00:47.4]} 34... Kg7 {[%clk
0:00:24.9]} 35. Rb4 {[%clk 0:00:42.4]} 35... Rxb4+ {[%clk 0:00:21]} 36. axb4
{[%clk 0:00:43.3]} 36... Ne4 {[%clk 0:00:19.6]} 37. Kb2 {[%clk 0:00:40.6]} 37...
e5 {[%clk 0:00:19.8]} 38. Nc6 {[%clk 0:00:38.3]} 38... Nd6 {[%clk 0:00:13.9]}
39. c4 {[%clk 0:00:35.7]} 39... Rd1 {[%clk 0:00:14.1]} 40. b5 {[%clk 0:00:35]}
40... e4 {[%clk 0:00:11.2]} 41. Na7 {[%clk 0:00:18.9]} 41... Rd4 {[%clk
0:00:09.2]} 42. b6 {[%clk 0:00:15.4]} 42... Nxc4+ {[%clk 0:00:06.3]} 43. Kc3
{[%clk 0:00:14.7]} 43... Rd6 {[%clk 0:00:03.3]} 44. Kxc4 {[%clk 0:00:14.4]}
44... Rxb6 {[%clk 0:00:03.7]} 45. Ra2 {[%clk 0:00:10.6]} 45... Ra6 {[%clk
0:00:02.7]} 46. Nb5 {[%clk 0:00:10.9]} 46... f5 {[%clk 0:00:01.6]} 47. Nc3
{[%clk 0:00:11.2]} 47... Rc6+ {[%clk 0:00:02.1]} 48. Kd4 {[%clk 0:00:11.3]}
48... Kf6 {[%clk 0:00:03]} 49. Rxa4 {[%clk 0:00:10.7]} 49... Rd6+ {[%clk
0:00:03.2]} 50. Kc4 {[%clk 0:00:10.5]} 50... Rd2 {[%clk 0:00:03.3]} 51. Ra6+
{[%clk 0:00:10.1]} 51... Ke5 {[%clk 0:00:03.9]} 52. Ra2 {[%clk 0:00:07.9]} 52...
Rd3 {[%clk 0:00:03.5]} 53. Ra5+ {[%clk 0:00:07.2]} 53... Ke6 {[%clk 0:00:03.8]}
54. Ra6+ {[%clk 0:00:07.1]} 54... Ke5 {[%clk 0:00:04.5]} 55. Ra5+ {[%clk
0:00:04.6]} 55... Ke6 {[%clk 0:00:04.6]} 56. Ra1 {[%clk 0:00:04.6]} 56... Rd2
{[%clk 0:00:04.7]} 57. Rf1 {[%clk 0:00:04.6]} 57... Rc2 {[%clk 0:00:04.8]} 58.
Kb3 {[%clk 0:00:04.5]} 58... Rd2 {[%clk 0:00:05.5]} 59. Na4 {[%clk 0:00:04.3]}
59... Ke5 {[%clk 0:00:05.9]} 60. Nb6 {[%clk 0:00:04.1]} 60... Rd6 {[%clk
0:00:05.6]} 61. Nc4+ {[%clk 0:00:04.3]} 61... Ke6 {[%clk 0:00:06.2]} 62. Nxd6
{[%clk 0:00:04.7]} 62... Kxd6 {[%clk 0:00:07.1]} 63. Kc3 {[%clk 0:00:05]} 63...
Kd5 {[%clk 0:00:08]} 64. Kd2 {[%clk 0:00:05.6]} 64... Kd4 {[%clk 0:00:08.5]} 65.
Ke2 {[%clk 0:00:06]} 65... Ke5 {[%clk 0:00:08.3]} 66. Ra1 {[%clk 0:00:06.2]}
66... f4 {[%clk 0:00:09.2]} 67. Ra5+ {[%clk 0:00:06.5]} 67... Kd4 {[%clk
0:00:09.7]} 68. gxf4 {[%clk 0:00:06.9]} 1-0

[Event "Late-Titled-Tuesday-Blitz-January-23-2024"]
[Site "Chess.com"]
[Date "2024.01.23"]
[Round "5"]
[White "MikaelyanArman"]
[Black "ozates"]
[Result "0-1"]
[WhiteElo "2833"]
[BlackElo "2621"]
[TimeControl "180+1"]
[EndTime "14:55:54 PST"]
[Termination "ozates won on time"]

1. d4 {[%clk 0:02:59.5]} 1... Nf6 {[%clk 0:02:59.1]} 2. Nf3 {[%clk 0:02:59.8]}
2... d5 {[%clk 0:02:58.8]} 3. c4 {[%clk 0:02:59.5]} 3... c6 {[%clk 0:02:59.1]}
4. Nbd2 {[%clk 0:02:57.6]} 4... Bf5 {[%clk 0:02:56.3]} 5. e3 {[%clk 0:02:48.5]}
5... e6 {[%clk 0:02:54.3]} 6. Be2 {[%clk 0:02:48.4]} 6... h6 {[%clk 0:02:54.1]}
7. O-O {[%clk 0:02:48.5]} 7... Be7 {[%clk 0:02:54.5]} 8. b3 {[%clk 0:02:49.1]}
8... O-O {[%clk 0:02:54.3]} 9. Bb2 {[%clk 0:02:49.8]} 9... Ne4 {[%clk
0:02:54.7]} 10. Nxe4 {[%clk 0:02:47.5]} 10... Bxe4 {[%clk 0:02:54.8]} 11. Nd2
{[%clk 0:02:48.2]} 11... Bg6 {[%clk 0:02:54.7]} 12. a3 {[%clk 0:02:40]} 12... a5
{[%clk 0:02:54.3]} 13. Bc3 {[%clk 0:02:39.3]} 13... Nd7 {[%clk 0:02:52.9]} 14.
b4 {[%clk 0:02:39.4]} 14... axb4 {[%clk 0:02:51.2]} 15. axb4 {[%clk 0:02:40.3]}
15... Rxa1 {[%clk 0:02:47.9]} 16. Qxa1 {[%clk 0:02:41.2]} 16... Qa8 {[%clk
0:02:48.2]} 17. b5 {[%clk 0:02:39.5]} 17... cxb5 {[%clk 0:02:44.8]} 18. cxd5
{[%clk 0:02:36.3]} 18... b4 {[%clk 0:02:45.1]} 19. Bb2 {[%clk 0:02:18.8]} 19...
exd5 {[%clk 0:02:43.9]} 20. Rc1 {[%clk 0:02:06.6]} 20... Bd6 {[%clk 0:02:34.7]}
21. Nf3 {[%clk 0:01:59.2]} 21... Nb6 {[%clk 0:02:30.6]} 22. Ne5 {[%clk 0:01:54]}
22... Bf5 {[%clk 0:02:01.6]} 23. Bb5 {[%clk 0:01:53.3]} 23... Qxa1 {[%clk
0:01:49.6]} 24. Bxa1 {[%clk 0:01:50.8]} 24... Rc8 {[%clk 0:01:41.2]} 25. Rxc8+
{[%clk 0:01:49.6]} 25... Bxc8 {[%clk 0:01:42.1]} 26. Kf1 {[%clk 0:01:37.4]}
26... Bxe5 {[%clk 0:01:34.5]} 27. dxe5 {[%clk 0:01:38.3]} 27... Nc4 {[%clk
0:01:35.2]} 28. Ke2 {[%clk 0:01:31.6]} 28... Bf5 {[%clk 0:01:27.3]} 29. f3
{[%clk 0:01:24.7]} 29... Na3 {[%clk 0:00:49.1]} 30. Ba4 {[%clk 0:00:59.7]} 30...
b5 {[%clk 0:00:44.2]} 31. Bb3 {[%clk 0:00:58]} 31... Nc4 {[%clk 0:00:35.6]} 32.
Bd4 {[%clk 0:00:58.3]} 32... Be6 {[%clk 0:00:24.3]} 33. h3 {[%clk 0:00:48.8]}
33... g5 {[%clk 0:00:17.9]} 34. g4 {[%clk 0:00:45.4]} 34... Kg7 {[%clk
0:00:15.3]} 35. f4 {[%clk 0:00:44.2]} 35... Kf8 {[%clk 0:00:05.6]} 36. f5 {[%clk
0:00:43.4]} 36... Bd7 {[%clk 0:00:05.2]} 37. Bc5+ {[%clk 0:00:40.9]} 37... Ke8
{[%clk 0:00:05.3]} 38. Bxb4 {[%clk 0:00:40]} 38... Nxe5 {[%clk 0:00:04.5]} 39.
Bxd5 {[%clk 0:00:40.2]} 39... Bc6 {[%clk 0:00:03.5]} 40. Bb3 {[%clk 0:00:33.7]}
40... Bg2 {[%clk 0:00:03.4]} 41. Bc3 {[%clk 0:00:34.4]} 41... f6 {[%clk
0:00:03]} 42. Kf2 {[%clk 0:00:31.2]} 42... Bxh3 {[%clk 0:00:02.7]} 43. Bxe5
{[%clk 0:00:05.5]} 43... fxe5 {[%clk 0:00:03.6]} 44. Bd1 {[%clk 0:00:06]} 44...
Kf7 {[%clk 0:00:02.4]} 45. e4 {[%clk 0:00:04.5]} 45... b4 {[%clk 0:00:02.8]} 46.
Kf3 {[%clk 0:00:04.8]} 46... Bf1 {[%clk 0:00:03.2]} 47. Bb3+ {[%clk 0:00:04.4]}
47... Kf6 {[%clk 0:00:03.4]} 48. Ke3 {[%clk 0:00:04.4]} 48... Bb5 {[%clk
0:00:03.7]} 49. Kd2 {[%clk 0:00:03.9]} 49... Be8 {[%clk 0:00:04.6]} 50. Ke3
{[%clk 0:00:04.4]} 50... h5 {[%clk 0:00:05.2]} 51. gxh5 {[%clk 0:00:05]} 51...
Bxh5 {[%clk 0:00:06]} 52. Bc4 {[%clk 0:00:05.2]} 52... g4 {[%clk 0:00:06.3]} 53.
Kf2 {[%clk 0:00:05.1]} 53... Kg5 {[%clk 0:00:06.4]} 54. Kg3 {[%clk 0:00:05.5]}
54... Be8 {[%clk 0:00:07.1]} 55. Be6 {[%clk 0:00:03.8]} 55... Bc6 {[%clk
0:00:07.4]} 56. f6 {[%clk 0:00:01.9]} 56... Kxf6 {[%clk 0:00:07.2]} 57. Bxg4
{[%clk 0:00:02.5]} 57... Bxe4 {[%clk 0:00:07.9]} 58. Bd1 {[%clk 0:00:02.8]}
58... Bd3 {[%clk 0:00:07.4]} 59. Kf2 {[%clk 0:00:03.3]} 59... e4 {[%clk
0:00:07.9]} 60. Ke3 {[%clk 0:00:04]} 60... Ke5 {[%clk 0:00:08.7]} 61. Bb3 {[%clk
0:00:04.4]} 61... Bb5 {[%clk 0:00:08.1]} 62. Bg8 {[%clk 0:00:04.2]} 62... Bd7
{[%clk 0:00:08.3]} 63. Bb3 {[%clk 0:00:02.4]} 63... Bf5 {[%clk 0:00:07.5]} 64.
Bc2 {[%clk 0:00:02.2]} 64... Kd5 {[%clk 0:00:07.6]} 65. Kf4 {[%clk 0:00:01.6]}
65... Bh7 {[%clk 0:00:07]} 66. Ke3 {[%clk 0:00:02]} 66... Kc4 {[%clk 0:00:07.3]}
67. Bd1 {[%clk 0:00:01.5]} 67... Kc3 {[%clk 0:00:07.4]} 68. Ba4 {[%clk 0:00:01]}
68... b3 {[%clk 0:00:08.3]} 0-1